[Event "Titled Tuesday Blitz January 31 Late 2023"]
[White "Mazibuko, Khanya"]
[Black "Tarnowska, Aleksandra"]
[WhiteFideId "14321041"]
[BlackFideId "1180967"]
[WhiteElo "1913"]
[BlackElo "1835"]
[Result "1-0"]
[Round "05"]
[TimeControl "180+2"]
[Date "2023.01.31"]
[WhiteClock "0:00:39"]
[BlackClock "0:00:04"]

1. e4 {[%clk 0:02:54]}  c5 {[%clk 0:03:00]} 2. Nc3 {[%clk 0:02:52]}  d6 {[%clk 0:02:56]} 3. f4 {[%clk 0:02:52]}  Nc6 {[%clk 0:02:54]} 4. Nf3 {[%clk 0:02:53]}  g6 {[%clk 0:02:55]} 5. Bb5 {[%clk 0:02:53]}  Bg7 {[%clk 0:02:53]} 6. O-O {[%clk 0:02:54]}  a6 {[%clk 0:02:46]} 7. Bxc6+ {[%clk 0:02:53]}  bxc6 {[%clk 0:02:46]} 8. d3 {[%clk 0:02:54]}  Nf6 {[%clk 0:02:36]} 9. Qe1 {[%clk 0:02:52]}  O-O {[%clk 0:02:24]} 10. Qh4 {[%clk 0:02:52]}  Qd7 {[%clk 0:02:11]} 11. f5 {[%clk 0:02:51]}  e6 {[%clk 0:01:45]} 12. Bg5 {[%clk 0:02:48]}  Ne8 {[%clk 0:01:29]} 13. f6 {[%clk 0:02:39]}  Nxf6 {[%clk 0:00:49]} 14. Bxf6 {[%clk 0:02:38]}  Bxf6 {[%clk 0:00:50]} 15. Qxf6 {[%clk 0:02:38]}  Qd8 {[%clk 0:00:51]} 16. Qf4 {[%clk 0:02:36]}  f6 {[%clk 0:00:48]} 17. Rae1 {[%clk 0:02:27]}  e5 {[%clk 0:00:48]} 18. Qd2 {[%clk 0:02:22]}  d5 {[%clk 0:00:48]} 19. Na4 {[%clk 0:02:21]}  Qd6 {[%clk 0:00:46]} 20. Qa5 {[%clk 0:02:19]}  dxe4 {[%clk 0:00:27]} 21. dxe4 {[%clk 0:02:20]}  c4 {[%clk 0:00:26]} 22. Qc5 {[%clk 0:02:18]}  Qe6 {[%clk 0:00:23]} 23. Nb6 {[%clk 0:02:13]}  Rb8 {[%clk 0:00:23]} 24. Nxc4 {[%clk 0:02:14]}  Rb5 {[%clk 0:00:10]} 25. Qd6 {[%clk 0:01:53]}  Qxc4 {[%clk 0:00:10]} 26. Ng5 {[%clk 0:01:41]}  Qc5+ {[%clk 0:00:06]} 27. Qxc5 {[%clk 0:01:40]}  Rxc5 {[%clk 0:00:07]} 28. Nf3 {[%clk 0:01:35]}  Rxc2 {[%clk 0:00:08]} 29. Rc1 {[%clk 0:01:35]}  Rxb2 {[%clk 0:00:08]} 30. Rxc6 {[%clk 0:01:35]}  Rxa2 {[%clk 0:00:08]} 31. Rc7 {[%clk 0:01:33]}  Bg4 {[%clk 0:00:08]} 32. Rd1 {[%clk 0:01:27]}  Rf7 {[%clk 0:00:06]} 33. Rc6 {[%clk 0:01:23]}  Bxf3 {[%clk 0:00:05]} 34. gxf3 {[%clk 0:01:23]}  Kg7 {[%clk 0:00:06]} 35. Rdd6 {[%clk 0:01:22]}  Ra3 {[%clk 0:00:06]} 36. Kg2 {[%clk 0:01:21]}  Ra2+ {[%clk 0:00:06]} 37. Kg3 {[%clk 0:01:20]}  a5 {[%clk 0:00:07]} 38. Ra6 {[%clk 0:01:20]}  a4 {[%clk 0:00:06]} 39. Ra5 {[%clk 0:01:16]}  h5 {[%clk 0:00:05]} 40. Raa6 {[%clk 0:01:16]}  Rf8 {[%clk 0:00:03]} 41. h4 {[%clk 0:01:16]}  Rf7 {[%clk 0:00:04]} 42. Rdb6 {[%clk 0:01:15]}  Rf8 {[%clk 0:00:02]} 43. Kh3 {[%clk 0:01:15]}  Rf7 {[%clk 0:00:02]} 44. Kg3 {[%clk 0:01:15]}  Ra3 {[%clk 0:00:03]} 45. Rb4 {[%clk 0:01:13]}  Ra1 {[%clk 0:00:03]} 46. Rbxa4 {[%clk 0:01:12]}  Rxa4 {[%clk 0:00:04]} 47. Rxa4 {[%clk 0:01:13]}  Rd7 {[%clk 0:00:05]} 48. Ra6 {[%clk 0:01:12]}  Kf7 {[%clk 0:00:05]} 49. Rb6 {[%clk 0:01:11]}  Kg7 {[%clk 0:00:05]} 50. Re6 {[%clk 0:01:11]}  Rd1 {[%clk 0:00:06]} 51. Re7+ {[%clk 0:01:11]}  Kh6 {[%clk 0:00:06]} 52. Ra7 {[%clk 0:01:10]}  Rd6 {[%clk 0:00:07]} 53. Rb7 {[%clk 0:01:09]}  g5 {[%clk 0:00:07]} 54. Rf7 {[%clk 0:01:07]}  Kg6 {[%clk 0:00:07]} 55. Ra7 {[%clk 0:01:06]}  gxh4+ {[%clk 0:00:07]} 56. Kxh4 {[%clk 0:01:06]}  Rd1 {[%clk 0:00:08]} 57. Ra8 {[%clk 0:01:04]}  Rh1+ {[%clk 0:00:09]} 58. Kg3 {[%clk 0:01:04]}  Rg1+ {[%clk 0:00:09]} 59. Kf2 {[%clk 0:01:03]}  Rh1 {[%clk 0:00:09]} 60. Kg2 {[%clk 0:01:00]}  Rh4 {[%clk 0:00:09]} 61. Rg8+ {[%clk 0:00:58]}  Kf7 {[%clk 0:00:08]} 62. Rh8 {[%clk 0:00:57]}  Kg7 {[%clk 0:00:08]} 63. Ra8 {[%clk 0:00:56]}  Rf4 {[%clk 0:00:08]} 64. Ra7+ {[%clk 0:00:51]}  Kg6 {[%clk 0:00:08]} 65. Ra6 {[%clk 0:00:51]}  Kg5 {[%clk 0:00:07]} 66. Ra8 {[%clk 0:00:51]}  f5 {[%clk 0:00:06]} 67. Rg8+ {[%clk 0:00:50]}  Kh4 {[%clk 0:00:06]} 68. exf5 {[%clk 0:00:49]}  Rxf5 {[%clk 0:00:05]} 69. Re8 {[%clk 0:00:47]}  Rg5+ {[%clk 0:00:05]} 70. Kf2 {[%clk 0:00:47]}  Rf5 {[%clk 0:00:05]} 71. Kg2 {[%clk 0:00:47]}  Kg5 {[%clk 0:00:05]} 72. Rg8+ {[%clk 0:00:46]}  Kf4 {[%clk 0:00:05]} 73. Kf2 {[%clk 0:00:41]}  h4 {[%clk 0:00:04]} 74. Rg4# {[%clk 0:00:39]} 1-0


[Site "https://www.chess.com"]

[Event "Titled Tuesday Blitz January 31 Late 2023"]
[White "Clawitter, Craig"]
[Black "Zhou, Qiyu"]
[WhiteFideId "2023105"]
[BlackFideId "505161"]
[WhiteElo "2050"]
[BlackElo "2201"]
[Result "0-1"]
[Round "05"]
[TimeControl "180+2"]
[Date "2023.01.31"]
[WhiteClock "0:00:02"]
[BlackClock "0:00:31"]

1. e4 {[%clk 0:02:57]}  e5 {[%clk 0:02:57]} 2. Nf3 {[%clk 0:02:56]}  Nc6 {[%clk 0:02:56]} 3. Bb5 {[%clk 0:02:57]}  a6 {[%clk 0:02:55]} 4. Ba4 {[%clk 0:02:57]}  Nf6 {[%clk 0:02:54]} 5. O-O {[%clk 0:02:54]}  b5 {[%clk 0:02:54]} 6. Bb3 {[%clk 0:02:54]}  Be7 {[%clk 0:02:54]} 7. d3 {[%clk 0:02:52]}  O-O {[%clk 0:02:52]} 8. Nc3 {[%clk 0:02:52]}  d6 {[%clk 0:02:50]} 9. a4 {[%clk 0:02:51]}  Rb8 {[%clk 0:02:49]} 10. axb5 {[%clk 0:02:46]}  axb5 {[%clk 0:02:49]} 11. h3 {[%clk 0:02:33]}  h6 {[%clk 0:02:43]} 12. Be3 {[%clk 0:02:29]}  Be6 {[%clk 0:02:39]} 13. Nd5 {[%clk 0:02:29]}  Kh7 {[%clk 0:02:33]} 14. Nd2 {[%clk 0:02:16]}  Bxd5 {[%clk 0:02:27]} 15. exd5 {[%clk 0:02:16]}  Nd4 {[%clk 0:02:27]} 16. Bxd4 {[%clk 0:02:06]}  exd4 {[%clk 0:02:28]} 17. Ne4 {[%clk 0:02:06]}  Qd7 {[%clk 0:02:21]} 18. Qf3 {[%clk 0:02:01]}  Ra8 {[%clk 0:02:14]} 19. Rae1 {[%clk 0:01:48]}  Rfe8 {[%clk 0:01:59]} 20. Ng3 {[%clk 0:01:45]}  Bf8 {[%clk 0:01:49]} 21. Qf5+ {[%clk 0:01:35]}  Qxf5 {[%clk 0:01:48]} 22. Nxf5 {[%clk 0:01:36]}  Re5 {[%clk 0:01:37]} 23. Nxd4 {[%clk 0:01:30]}  Rae8 {[%clk 0:01:24]} 24. Rxe5 {[%clk 0:01:13]}  Rxe5 {[%clk 0:01:25]} 25. Nxb5 {[%clk 0:00:51]}  c6 {[%clk 0:01:18]} 26. Nc3 {[%clk 0:00:27]}  Nxd5 {[%clk 0:01:12]} 27. Bxd5 {[%clk 0:00:17]}  cxd5 {[%clk 0:01:13]} 28. Ra1 {[%clk 0:00:15]}  Be7 {[%clk 0:01:08]} 29. Ra5 {[%clk 0:00:14]}  Re1+ {[%clk 0:00:53]} 30. Kh2 {[%clk 0:00:14]}  d4 {[%clk 0:00:53]} 31. Ne4 {[%clk 0:00:10]}  Re2 {[%clk 0:00:48]} 32. Ra7 {[%clk 0:00:10]}  Bh4 {[%clk 0:00:40]} 33. g3 {[%clk 0:00:08]}  Bg5 {[%clk 0:00:38]} 34. h4 {[%clk 0:00:07]}  Bc1 {[%clk 0:00:37]} 35. b4 {[%clk 0:00:06]}  d5 {[%clk 0:00:37]} 36. Nc5 {[%clk 0:00:04]}  Rxf2+ {[%clk 0:00:37]} 37. Kh3 {[%clk 0:00:04]}  Rxc2 {[%clk 0:00:38]} 38. Rxf7 {[%clk 0:00:03]}  Kg6 {[%clk 0:00:34]} 39. Rd7 {[%clk 0:00:02]}  Be3 {[%clk 0:00:34]} 40. Rxd5 {[%clk 0:00:02]}  Rb2 {[%clk 0:00:31]} 0-1


[Site "https://www.chess.com"]

[Event "Titled Tuesday Blitz January 31 Late 2023"]
[White "Dominguez Perez, Leinier"]
[Black "Duda, Jan-Krzysztof"]
[WhiteFideId "3503240"]
[BlackFideId "1170546"]
[WhiteElo "2739"]
[BlackElo "2724"]
[Result "0-1"]
[Round "06"]
[TimeControl "180+2"]
[Date "2023.01.31"]
[WhiteClock "0:00:08"]
[BlackClock "0:00:33"]

1. d4 {[%clk 0:03:00]}  Nf6 {[%clk 0:02:58]} 2. Nf3 {[%clk 0:03:01]}  g6 {[%clk 0:02:58]} 3. e3 {[%clk 0:03:02]}  Bg7 {[%clk 0:02:58]} 4. Be2 {[%clk 0:03:02]}  O-O {[%clk 0:02:59]} 5. O-O {[%clk 0:03:03]}  d6 {[%clk 0:02:59]} 6. c4 {[%clk 0:03:03]}  Nbd7 {[%clk 0:03:00]} 7. Nc3 {[%clk 0:03:04]}  e5 {[%clk 0:02:59]} 8. Qc2 {[%clk 0:03:04]}  Re8 {[%clk 0:03:00]} 9. Rd1 {[%clk 0:03:04]}  e4 {[%clk 0:02:55]} 10. Nd2 {[%clk 0:03:04]}  Qe7 {[%clk 0:02:56]} 11. b4 {[%clk 0:03:05]}  h5 {[%clk 0:02:55]} 12. Bb2 {[%clk 0:03:05]}  Nf8 {[%clk 0:02:56]} 13. Rac1 {[%clk 0:03:05]}  Bf5 {[%clk 0:02:55]} 14. d5 {[%clk 0:02:58]}  a6 {[%clk 0:02:53]} 15. c5 {[%clk 0:02:42]}  h4 {[%clk 0:02:37]} 16. h3 {[%clk 0:02:40]}  g5 {[%clk 0:02:24]} 17. Nc4 {[%clk 0:01:49]}  Rac8 {[%clk 0:02:14]} 18. cxd6 {[%clk 0:01:35]}  cxd6 {[%clk 0:02:14]} 19. Nb6 {[%clk 0:01:35]}  Rc7 {[%clk 0:02:06]} 20. Qd2 {[%clk 0:01:31]}  N8d7 {[%clk 0:01:49]} 21. Nca4 {[%clk 0:01:23]}  Rxc1 {[%clk 0:01:42]} 22. Rxc1 {[%clk 0:01:23]}  Ne5 {[%clk 0:01:43]} 23. Bxe5 {[%clk 0:01:03]}  Qxe5 {[%clk 0:01:41]} 24. Rc7 {[%clk 0:00:58]}  g4 {[%clk 0:01:39]} 25. hxg4 {[%clk 0:00:58]}  Nxg4 {[%clk 0:01:25]} 26. Bxg4 {[%clk 0:00:57]}  Bxg4 {[%clk 0:01:26]} 27. Nc3 {[%clk 0:00:50]}  h3 {[%clk 0:01:24]} 28. Ne2 {[%clk 0:00:45]}  hxg2 {[%clk 0:01:13]} 29. Nf4 {[%clk 0:00:32]}  Qg5 {[%clk 0:00:46]} 30. Qc1 {[%clk 0:00:22]}  Be5 {[%clk 0:00:37]} 31. Nxg2 {[%clk 0:00:07]}  Bf3 {[%clk 0:00:35]} 32. Qf1 {[%clk 0:00:08]}  Qh5 {[%clk 0:00:33]} 0-1


[Site "https://www.chess.com"]

[Event "Titled Tuesday Blitz January 31 Late 2023"]
[White "Indjic, Aleksandar"]
[Black "Bacrot, Etienne"]
[WhiteFideId "911925"]
[BlackFideId "605506"]
[WhiteElo "2618"]
[BlackElo "2667"]
[Result "1/2-1/2"]
[Round "06"]
[TimeControl "180+2"]
[Date "2023.01.31"]
[WhiteClock "0:00:22"]
[BlackClock "0:00:10"]

1. c4 {[%clk 0:03:00]}  c6 {[%clk 0:02:59]} 2. Nf3 {[%clk 0:03:01]}  d5 {[%clk 0:02:59]} 3. d4 {[%clk 0:03:01]}  Nf6 {[%clk 0:02:59]} 4. Nc3 {[%clk 0:03:02]}  dxc4 {[%clk 0:02:59]} 5. a4 {[%clk 0:03:01]}  Bf5 {[%clk 0:02:59]} 6. Ne5 {[%clk 0:03:01]}  Nbd7 {[%clk 0:02:59]} 7. Nxc4 {[%clk 0:03:00]}  Qc7 {[%clk 0:03:00]} 8. Bg5 {[%clk 0:02:56]}  Ne4 {[%clk 0:02:55]} 9. Bh4 {[%clk 0:02:56]}  e5 {[%clk 0:02:52]} 10. e3 {[%clk 0:02:33]}  Bb4 {[%clk 0:02:38]} 11. Rc1 {[%clk 0:02:33]}  exd4 {[%clk 0:02:35]} 12. exd4 {[%clk 0:02:33]}  O-O {[%clk 0:02:32]} 13. Be2 {[%clk 0:02:32]}  Rfe8 {[%clk 0:02:09]} 14. O-O {[%clk 0:02:31]}  Qf4 {[%clk 0:02:06]} 15. Bg3 {[%clk 0:02:22]}  Nxg3 {[%clk 0:01:57]} 16. fxg3 {[%clk 0:02:17]}  Qg5 {[%clk 0:01:57]} 17. Rxf5 {[%clk 0:02:16]}  Qxf5 {[%clk 0:01:56]} 18. Bg4 {[%clk 0:02:16]}  Re1+ {[%clk 0:01:29]} 19. Qxe1 {[%clk 0:02:16]}  Qxg4 {[%clk 0:01:30]} 20. Qe4 {[%clk 0:02:17]}  Qxe4 {[%clk 0:01:28]} 21. Nxe4 {[%clk 0:02:18]}  Nb6 {[%clk 0:01:23]} 22. b3 {[%clk 0:02:08]}  Rd8 {[%clk 0:01:22]} 23. Rd1 {[%clk 0:01:52]}  f5 {[%clk 0:01:11]} 24. Ng5 {[%clk 0:01:52]}  Bc3 {[%clk 0:00:53]} 25. Nf3 {[%clk 0:01:50]}  c5 {[%clk 0:00:50]} 26. Nxb6 {[%clk 0:01:23]}  axb6 {[%clk 0:00:51]} 27. d5 {[%clk 0:01:18]}  Bd4+ {[%clk 0:00:50]} 28. Kf1 {[%clk 0:01:18]}  Rxd5 {[%clk 0:00:50]} 29. Ke2 {[%clk 0:01:19]}  Kf7 {[%clk 0:00:49]} 30. Nxd4 {[%clk 0:01:19]}  cxd4 {[%clk 0:00:48]} 31. Kd3 {[%clk 0:01:19]}  b5 {[%clk 0:00:47]} 32. a5 {[%clk 0:01:16]}  Ke6 {[%clk 0:00:46]} 33. Rc1 {[%clk 0:01:13]}  Kd7 {[%clk 0:00:46]} 34. b4 {[%clk 0:01:11]}  g6 {[%clk 0:00:45]} 35. Re1 {[%clk 0:01:06]}  Rd6 {[%clk 0:00:44]} 36. Re5 {[%clk 0:01:04]}  Kc6 {[%clk 0:00:45]} 37. Re7 {[%clk 0:01:02]}  h5 {[%clk 0:00:38]} 38. h4 {[%clk 0:01:01]}  Rf6 {[%clk 0:00:19]} 39. Kxd4 {[%clk 0:00:53]}  f4 {[%clk 0:00:19]} 40. Ke5 {[%clk 0:00:49]}  Rf5+ {[%clk 0:00:20]} 41. Ke4 {[%clk 0:00:49]}  fxg3 {[%clk 0:00:19]} 42. Re6+ {[%clk 0:00:50]}  Kd7 {[%clk 0:00:19]} 43. Rxg6 {[%clk 0:00:50]}  Rf2 {[%clk 0:00:20]} 44. Rxg3 {[%clk 0:00:32]}  Rb2 {[%clk 0:00:20]} 45. Rd3+ {[%clk 0:00:32]}  Ke6 {[%clk 0:00:18]} 46. Kf4 {[%clk 0:00:30]}  Rxg2 {[%clk 0:00:17]} 47. Re3+ {[%clk 0:00:30]}  Kf6 {[%clk 0:00:14]} 48. Re4 {[%clk 0:00:20]}  Rg4+ {[%clk 0:00:10]} 49. Kf3 {[%clk 0:00:21]}  Rxe4 {[%clk 0:00:08]} 50. Kxe4 {[%clk 0:00:21]}  Ke6 {[%clk 0:00:08]} 51. Kf4 {[%clk 0:00:22]}  Kf6 {[%clk 0:00:09]} 52. Ke4 {[%clk 0:00:22]}  Ke6 {[%clk 0:00:09]} 53. Kf4 {[%clk 0:00:23]}  Kf6 {[%clk 0:00:10]} 54. Ke4 {[%clk 0:00:22]} 1/2-1/2


[Site "https://www.chess.com"]

[Event "Titled Tuesday Blitz January 31 Late 2023"]
[White "Van Foreest, Lucas"]
[Black "So, Wesley"]
[WhiteFideId "1039792"]
[BlackFideId "5202213"]
[WhiteElo "2556"]
[BlackElo "2760"]
[Result "0-1"]
[Round "06"]
[TimeControl "180+2"]
[Date "2023.01.31"]
[WhiteClock "0:00:02"]
[BlackClock "0:00:09"]

1. e4 {[%clk 0:03:00]}  e5 {[%clk 0:02:54]} 2. Qg4 {[%clk 0:03:00]}  Nf6 {[%clk 0:02:14]} 3. Qg3 {[%clk 0:03:00]}  Nc6 {[%clk 0:02:13]} 4. Nc3 {[%clk 0:02:59]}  g6 {[%clk 0:02:06]} 5. Bc4 {[%clk 0:02:57]}  Bg7 {[%clk 0:02:06]} 6. d3 {[%clk 0:02:57]}  O-O {[%clk 0:02:03]} 7. Nge2 {[%clk 0:02:57]}  d6 {[%clk 0:02:00]} 8. O-O {[%clk 0:02:56]}  Na5 {[%clk 0:02:01]} 9. Bb3 {[%clk 0:02:56]}  Nh5 {[%clk 0:01:57]} 10. Qg5 {[%clk 0:02:44]}  Qxg5 {[%clk 0:01:49]} 11. Bxg5 {[%clk 0:02:44]}  h6 {[%clk 0:01:49]} 12. Be3 {[%clk 0:02:42]}  c6 {[%clk 0:01:47]} 13. f4 {[%clk 0:02:38]}  b6 {[%clk 0:01:41]} 14. h3 {[%clk 0:02:10]}  exf4 {[%clk 0:01:27]} 15. Nxf4 {[%clk 0:02:10]}  Nxf4 {[%clk 0:01:26]} 16. Bxf4 {[%clk 0:02:10]}  Nxb3 {[%clk 0:01:25]} 17. axb3 {[%clk 0:02:09]}  Rd8 {[%clk 0:01:25]} 18. Be3 {[%clk 0:01:42]}  Bb7 {[%clk 0:01:25]} 19. Ra2 {[%clk 0:01:39]}  d5 {[%clk 0:01:18]} 20. exd5 {[%clk 0:01:28]}  cxd5 {[%clk 0:01:19]} 21. Bf2 {[%clk 0:01:27]}  d4 {[%clk 0:01:17]} 22. Nb1 {[%clk 0:01:12]}  a6 {[%clk 0:01:15]} 23. Nd2 {[%clk 0:01:10]}  Rac8 {[%clk 0:01:14]} 24. Rc1 {[%clk 0:00:50]}  h5 {[%clk 0:01:13]} 25. Bh4 {[%clk 0:00:46]}  Re8 {[%clk 0:01:11]} 26. Nc4 {[%clk 0:00:43]}  Re2 {[%clk 0:01:09]} 27. Nd6 {[%clk 0:00:39]}  Bh6 {[%clk 0:01:03]} 28. Re1 {[%clk 0:00:26]}  Be3+ {[%clk 0:00:50]} 29. Kf1 {[%clk 0:00:23]}  Rexc2 {[%clk 0:00:22]} 30. Nxb7 {[%clk 0:00:21]}  g5 {[%clk 0:00:21]} 31. Nd6 {[%clk 0:00:21]}  R8c6 {[%clk 0:00:18]} 32. Bxg5 {[%clk 0:00:10]}  Bxg5 {[%clk 0:00:13]} 33. Ne4 {[%clk 0:00:10]}  Be3 {[%clk 0:00:12]} 34. Re2 {[%clk 0:00:05]}  Rc1+ {[%clk 0:00:12]} 35. Re1 {[%clk 0:00:05]}  f5 {[%clk 0:00:12]} 36. Nf6+ {[%clk 0:00:04]}  Kf7 {[%clk 0:00:11]} 37. Nxh5 {[%clk 0:00:03]}  R1c2 {[%clk 0:00:11]} 38. Re2 {[%clk 0:00:02]}  Rc1+ {[%clk 0:00:10]} 39. Re1 {[%clk 0:00:03]}  R1c2 {[%clk 0:00:09]} 40. Re2 {[%clk 0:00:03]}  f4 {[%clk 0:00:10]} 41. Rxc2 {[%clk 0:00:03]}  Rxc2 {[%clk 0:00:11]} 42. Rxa6 {[%clk 0:00:04]}  Kg6 {[%clk 0:00:09]} 43. g4 {[%clk 0:00:03]}  f3 {[%clk 0:00:09]} 44. Rxb6+ {[%clk 0:00:03]}  Kg5 {[%clk 0:00:09]} 45. h4+ {[%clk 0:00:02]}  Kxh4 {[%clk 0:00:09]} 0-1


[Site "https://www.chess.com"]

[Event "Titled Tuesday Blitz January 31 Late 2023"]
[White "Pranav, V"]
[Black "Holt, Conrad"]
[WhiteFideId "25060783"]
[BlackFideId "2034387"]
[WhiteElo "2597"]
[BlackElo "2540"]
[Result "0-1"]
[Round "06"]
[TimeControl "180+2"]
[Date "2023.01.31"]
[WhiteClock "0:00:05"]
[BlackClock "0:00:49"]

1. e4 {[%clk 0:03:00]}  e6 {[%clk 0:03:00]} 2. d3 {[%clk 0:03:00]}  d5 {[%clk 0:03:00]} 3. Nd2 {[%clk 0:03:01]}  c5 {[%clk 0:02:59]} 4. Ngf3 {[%clk 0:03:01]}  Nc6 {[%clk 0:02:59]} 5. g3 {[%clk 0:03:02]}  Bd6 {[%clk 0:02:59]} 6. Bg2 {[%clk 0:03:02]}  Nge7 {[%clk 0:02:59]} 7. O-O {[%clk 0:03:03]}  O-O {[%clk 0:02:59]} 8. Re1 {[%clk 0:03:03]}  Qc7 {[%clk 0:02:58]} 9. Nf1 {[%clk 0:03:03]}  d4 {[%clk 0:02:56]} 10. N3d2 {[%clk 0:02:52]}  e5 {[%clk 0:02:51]} 11. Nc4 {[%clk 0:02:52]}  Be6 {[%clk 0:02:46]} 12. Nxd6 {[%clk 0:02:52]}  Qxd6 {[%clk 0:02:46]} 13. f4 {[%clk 0:02:52]}  f6 {[%clk 0:02:32]} 14. b3 {[%clk 0:02:50]}  b5 {[%clk 0:02:22]} 15. f5 {[%clk 0:02:49]}  Bf7 {[%clk 0:02:21]} 16. g4 {[%clk 0:02:49]}  c4 {[%clk 0:02:21]} 17. h4 {[%clk 0:02:44]}  Rac8 {[%clk 0:02:18]} 18. g5 {[%clk 0:02:38]}  cxd3 {[%clk 0:02:14]} 19. cxd3 {[%clk 0:02:37]}  Nb4 {[%clk 0:02:13]} 20. Ba3 {[%clk 0:02:37]}  a5 {[%clk 0:02:09]} 21. Ng3 {[%clk 0:02:28]}  Rc3 {[%clk 0:02:05]} 22. Ne2 {[%clk 0:02:08]}  Rc6 {[%clk 0:02:00]} 23. Bf3 {[%clk 0:02:04]}  Rfc8 {[%clk 0:01:51]} 24. Rc1 {[%clk 0:01:43]}  Rxc1 {[%clk 0:01:44]} 25. Nxc1 {[%clk 0:01:44]}  Qc7 {[%clk 0:01:33]} 26. gxf6 {[%clk 0:01:11]}  gxf6 {[%clk 0:01:30]} 27. Kh1 {[%clk 0:01:03]}  Nc2 {[%clk 0:01:21]} 28. Rg1+ {[%clk 0:01:01]}  Kh8 {[%clk 0:01:21]} 29. Bxe7 {[%clk 0:00:57]}  Qxe7 {[%clk 0:01:22]} 30. Qd2 {[%clk 0:00:56]}  b4 {[%clk 0:01:05]} 31. Qh6 {[%clk 0:00:53]}  Rg8 {[%clk 0:01:05]} 32. Rxg8+ {[%clk 0:00:48]}  Bxg8 {[%clk 0:01:04]} 33. Ne2 {[%clk 0:00:48]}  Ne1 {[%clk 0:01:01]} 34. Bg2 {[%clk 0:00:28]}  Nxd3 {[%clk 0:01:00]} 35. Qd2 {[%clk 0:00:26]}  Nf2+ {[%clk 0:00:55]} 36. Kg1 {[%clk 0:00:26]}  Ng4 {[%clk 0:00:55]} 37. Bf3 {[%clk 0:00:24]}  Qg7 {[%clk 0:00:52]} 38. Ng3 {[%clk 0:00:10]}  Ne3 {[%clk 0:00:49]} 39. Kf2 {[%clk 0:00:07]}  Qxg3+ {[%clk 0:00:48]} 40. Kxg3 {[%clk 0:00:05]}  Nf1+ {[%clk 0:00:49]} 0-1


[Site "https://www.chess.com"]

[Event "Titled Tuesday Blitz January 31 Late 2023"]
[White "Salem, A.R. Saleh"]
[Black "Yanchenko, Roman"]
[WhiteFideId "9301348"]
[BlackFideId "4137329"]
[WhiteElo "2677"]
[BlackElo "2466"]
[Result "1/2-1/2"]
[Round "06"]
[TimeControl "180+2"]
[Date "2023.01.31"]
[WhiteClock "0:00:04"]
[BlackClock "0:00:12"]

1. d4 {[%clk 0:03:00]}  d5 {[%clk 0:03:00]} 2. c4 {[%clk 0:03:01]}  c6 {[%clk 0:03:00]} 3. Nf3 {[%clk 0:03:01]}  Bf5 {[%clk 0:03:00]} 4. Nc3 {[%clk 0:02:57]}  e6 {[%clk 0:03:00]} 5. g3 {[%clk 0:02:56]}  Nf6 {[%clk 0:03:00]} 6. Nh4 {[%clk 0:02:56]}  Bg6 {[%clk 0:03:00]} 7. Nxg6 {[%clk 0:02:54]}  hxg6 {[%clk 0:03:01]} 8. Bg2 {[%clk 0:02:53]}  Nbd7 {[%clk 0:03:01]} 9. O-O {[%clk 0:02:52]}  Bd6 {[%clk 0:03:01]} 10. b3 {[%clk 0:02:47]}  O-O {[%clk 0:03:01]} 11. e4 {[%clk 0:02:40]}  dxe4 {[%clk 0:03:00]} 12. Nxe4 {[%clk 0:02:41]}  Nxe4 {[%clk 0:03:00]} 13. Bxe4 {[%clk 0:02:42]}  Nf6 {[%clk 0:03:00]} 14. Bf3 {[%clk 0:02:42]}  e5 {[%clk 0:03:01]} 15. dxe5 {[%clk 0:02:36]}  Bxe5 {[%clk 0:03:00]} 16. Rb1 {[%clk 0:02:37]}  Qxd1 {[%clk 0:02:47]} 17. Rxd1 {[%clk 0:02:38]}  Rad8 {[%clk 0:02:47]} 18. Be3 {[%clk 0:02:38]}  a6 {[%clk 0:02:18]} 19. Bb6 {[%clk 0:02:38]}  Rxd1+ {[%clk 0:02:18]} 20. Rxd1 {[%clk 0:02:38]}  Re8 {[%clk 0:02:18]} 21. h4 {[%clk 0:02:35]}  Rc8 {[%clk 0:02:05]} 22. a4 {[%clk 0:02:30]}  Bc7 {[%clk 0:01:49]} 23. Be3 {[%clk 0:02:28]}  Rd8 {[%clk 0:01:48]} 24. Rxd8+ {[%clk 0:02:27]}  Bxd8 {[%clk 0:01:49]} 25. b4 {[%clk 0:02:17]}  Kf8 {[%clk 0:01:49]} 26. b5 {[%clk 0:02:08]}  axb5 {[%clk 0:01:49]} 27. cxb5 {[%clk 0:02:08]}  cxb5 {[%clk 0:01:49]} 28. axb5 {[%clk 0:02:08]}  b6 {[%clk 0:01:50]} 29. Kf1 {[%clk 0:02:05]}  Nd7 {[%clk 0:01:49]} 30. Ke2 {[%clk 0:02:03]}  Be7 {[%clk 0:01:49]} 31. Bc6 {[%clk 0:01:55]}  Nc5 {[%clk 0:01:49]} 32. Kd2 {[%clk 0:01:50]}  Na4 {[%clk 0:01:49]} 33. Bf4 {[%clk 0:01:40]}  Bc5 {[%clk 0:01:48]} 34. f3 {[%clk 0:01:39]}  Ke7 {[%clk 0:01:48]} 35. Kd3 {[%clk 0:01:37]}  Bd6 {[%clk 0:01:47]} 36. Ke3 {[%clk 0:00:59]}  Nc5 {[%clk 0:01:39]} 37. Bd5 {[%clk 0:00:55]}  Bxf4+ {[%clk 0:01:30]} 38. Kxf4 {[%clk 0:00:56]}  f6 {[%clk 0:01:29]} 39. g4 {[%clk 0:00:51]}  Kd6 {[%clk 0:01:24]} 40. Bf7 {[%clk 0:00:50]}  Ne6+ {[%clk 0:01:01]} 41. Ke4 {[%clk 0:00:38]}  Nc7 {[%clk 0:01:00]} 42. Bxg6 {[%clk 0:00:34]}  Nxb5 {[%clk 0:01:01]} 43. Bf7 {[%clk 0:00:32]}  Ke7 {[%clk 0:01:01]} 44. Bb3 {[%clk 0:00:30]}  Nd6+ {[%clk 0:00:53]} 45. Kd5 {[%clk 0:00:30]}  Nf7 {[%clk 0:00:53]} 46. f4 {[%clk 0:00:30]}  Nh6 {[%clk 0:00:53]} 47. Bd1 {[%clk 0:00:30]}  g5 {[%clk 0:00:43]} 48. fxg5 {[%clk 0:00:20]}  fxg5 {[%clk 0:00:43]} 49. hxg5 {[%clk 0:00:21]}  Nf7 {[%clk 0:00:44]} 50. g6 {[%clk 0:00:22]}  Ng5 {[%clk 0:00:41]} 51. Ke5 {[%clk 0:00:22]}  Ne6 {[%clk 0:00:41]} 52. Bb3 {[%clk 0:00:20]}  Ng7 {[%clk 0:00:36]} 53. Bc4 {[%clk 0:00:21]}  Kf8 {[%clk 0:00:34]} 54. Bb5 {[%clk 0:00:18]}  Ke7 {[%clk 0:00:35]} 55. Bc4 {[%clk 0:00:17]}  Ne8 {[%clk 0:00:32]} 56. Bd5 {[%clk 0:00:15]}  Kf8 {[%clk 0:00:20]} 57. Bc6 {[%clk 0:00:15]}  Ke7 {[%clk 0:00:14]} 58. Kf5 {[%clk 0:00:09]}  Ng7+ {[%clk 0:00:06]} 59. Ke5 {[%clk 0:00:10]}  Ne6 {[%clk 0:00:06]} 60. Bd5 {[%clk 0:00:10]}  Ng7 {[%clk 0:00:06]} 61. Bf7 {[%clk 0:00:10]}  b5 {[%clk 0:00:06]} 62. Bb3 {[%clk 0:00:09]}  b4 {[%clk 0:00:06]} 63. g5 {[%clk 0:00:10]}  Ne8 {[%clk 0:00:06]} 64. Bc4 {[%clk 0:00:09]}  Ng7 {[%clk 0:00:07]} 65. Bf7 {[%clk 0:00:10]}  Nh5 {[%clk 0:00:07]} 66. Kd4 {[%clk 0:00:09]}  Kd6 {[%clk 0:00:06]} 67. Kc4 {[%clk 0:00:09]}  Ke5 {[%clk 0:00:07]} 68. Kxb4 {[%clk 0:00:07]}  Ng7 {[%clk 0:00:07]} 69. Kc5 {[%clk 0:00:07]}  Kf4 {[%clk 0:00:07]} 70. Kd6 {[%clk 0:00:07]}  Kxg5 {[%clk 0:00:06]} 71. Ke7 {[%clk 0:00:08]}  Kh6 {[%clk 0:00:07]} 72. Kf8 {[%clk 0:00:06]}  Nh5 {[%clk 0:00:08]} 73. Be8 {[%clk 0:00:05]}  Ng7 {[%clk 0:00:08]} 74. Bf7 {[%clk 0:00:05]}  Nh5 {[%clk 0:00:09]} 75. Kg8 {[%clk 0:00:06]}  Ng7 {[%clk 0:00:10]} 76. Kh8 {[%clk 0:00:05]}  Nh5 {[%clk 0:00:11]} 77. Be8 {[%clk 0:00:05]}  Ng7 {[%clk 0:00:12]} 78. Bc6 {[%clk 0:00:04]}  Kxg6 {[%clk 0:00:12]} 1/2-1/2


[Site "https://www.chess.com"]